[Event "Late-Titled-Tuesday-Blitz-August-29-2023"]
[Site "Chess.com"]
[Date "2023.08.29"]
[Round "8"]
[White "Alphafischer2019"]
[Black "Lennis93"]
[Result "1-0"]
[WhiteElo "2539"]
[BlackElo "2674"]
[TimeControl "180+1"]
[EndTime "15:27:41 PDT"]
[Termination "Alphafischer2019 won by checkmate"]

1. d4 {[%clk 0:03:00.9]} 1... Nf6 {[%clk 0:02:59.3]} 2. Bf4 {[%clk 0:03:00.7]}
2... c5 {[%clk 0:02:58.4]} 3. e3 {[%clk 0:02:52.8]} 3... g6 {[%clk 0:02:45.4]}
4. Nc3 {[%clk 0:02:51.4]} 4... Nh5 {[%clk 0:02:39.9]} 5. Be5 {[%clk 0:02:49.6]}
5... f6 {[%clk 0:02:39.8]} 6. Bg3 {[%clk 0:02:50.3]} 6... d5 {[%clk 0:02:34.9]}
7. dxc5 {[%clk 0:02:47.6]} 7... e6 {[%clk 0:02:29.2]} 8. b4 {[%clk 0:02:25.7]}
8... Nc6 {[%clk 0:02:25.5]} 9. a3 {[%clk 0:02:23.7]} 9... a5 {[%clk 0:02:20.4]}
10. Rb1 {[%clk 0:02:22.8]} 10... axb4 {[%clk 0:02:20.1]} 11. axb4 {[%clk
0:02:23.5]} 11... Nxg3 {[%clk 0:02:08.6]} 12. hxg3 {[%clk 0:02:22.4]} 12... Bg7
{[%clk 0:02:08.7]} 13. Bb5 {[%clk 0:02:22.9]} 13... O-O {[%clk 0:02:08.3]} 14.
Nge2 {[%clk 0:02:21]} 14... Ne7 {[%clk 0:02:02.9]} 15. Qd2 {[%clk 0:02:19]}
15... e5 {[%clk 0:02:03.1]} 16. Rd1 {[%clk 0:02:02.9]} 16... Be6 {[%clk
0:01:59.3]} 17. Ba4 {[%clk 0:02:03.6]} 17... Qc7 {[%clk 0:01:49.2]} 18. Bb3
{[%clk 0:02:00.7]} 18... Rfd8 {[%clk 0:01:44.3]} 19. e4 {[%clk 0:02:01.2]} 19...
Bf7 {[%clk 0:01:30.5]} 20. exd5 {[%clk 0:02:00.3]} 20... Nc6 {[%clk 0:01:17.9]}
21. d6 {[%clk 0:01:55.6]} 21... Qd7 {[%clk 0:01:17.6]} 22. Nd5 {[%clk 0:01:55]}
22... Bxd5 {[%clk 0:01:13.3]} 23. Bxd5+ {[%clk 0:01:52.7]} 23... Kh8 {[%clk
0:01:13.1]} 24. c3 {[%clk 0:01:51.2]} 24... f5 {[%clk 0:01:10.2]} 25. Qg5 {[%clk
0:01:47.6]} 25... Qe8 {[%clk 0:01:05]} 26. Kd2 {[%clk 0:01:44.9]} 26... h5
{[%clk 0:00:56.5]} 27. g4 {[%clk 0:01:09.7]} 27... Kh7 {[%clk 0:00:56.5]} 28.
gxh5 {[%clk 0:00:50.8]} 28... Bh6 {[%clk 0:00:48]} 29. hxg6+ {[%clk 0:00:51.4]}
29... Qxg6 {[%clk 0:00:47.8]} 30. f4 {[%clk 0:00:52]} 30... exf4 {[%clk
0:00:32.5]} 31. Qxg6+ {[%clk 0:00:35.8]} 31... Kxg6 {[%clk 0:00:33.4]} 32. Rxh6+
{[%clk 0:00:16.1]} 32... Kxh6 {[%clk 0:00:33.3]} 33. Nxf4 {[%clk 0:00:16.7]}
33... Ne5 {[%clk 0:00:32.6]} 34. Rh1+ {[%clk 0:00:14.2]} 34... Kg5 {[%clk
0:00:31.7]} 35. Ne6+ {[%clk 0:00:15.1]} 35... Kg4 {[%clk 0:00:32.2]} 36. Nxd8
{[%clk 0:00:15.6]} 36... Rxd8 {[%clk 0:00:32.6]} 37. c4 {[%clk 0:00:15.5]} 37...
b6 {[%clk 0:00:31.7]} 38. Kc3 {[%clk 0:00:15]} 38... bxc5 {[%clk 0:00:31.4]} 39.
bxc5 {[%clk 0:00:15.9]} 39... Kg3 {[%clk 0:00:26.9]} 40. Re1 {[%clk 0:00:16.4]}
40... Nd7 {[%clk 0:00:24.7]} 41. c6 {[%clk 0:00:16.7]} 41... Nc5 {[%clk
0:00:22.9]} 42. c7 {[%clk 0:00:16.6]} 42... Rf8 {[%clk 0:00:20.6]} 43. Be6
{[%clk 0:00:15.8]} 43... Ne4+ {[%clk 0:00:17.6]} 44. Rxe4 {[%clk 0:00:15.8]}
44... fxe4 {[%clk 0:00:18.5]} 45. c8=Q {[%clk 0:00:16.5]} 45... Rxc8 {[%clk
0:00:18.4]} 46. Bxc8 {[%clk 0:00:17.4]} 46... e3 {[%clk 0:00:19.3]} 47. Kd3
{[%clk 0:00:15.1]} 47... Kf2 {[%clk 0:00:19.3]} 48. Bg4 {[%clk 0:00:15.7]} 48...
Kg3 {[%clk 0:00:19.6]} 49. Be2 {[%clk 0:00:16.2]} 49... Kf2 {[%clk 0:00:19.9]}
50. d7 {[%clk 0:00:17]} 50... Kxg2 {[%clk 0:00:20.6]} 51. d8=Q {[%clk
0:00:17.5]} 51... Kf2 {[%clk 0:00:21.5]} 52. Qf6+ {[%clk 0:00:17.9]} 52... Ke1
{[%clk 0:00:22.4]} 53. Qf1# {[%clk 0:00:17.1]} 1-0

[Event "Late-Titled-Tuesday-Blitz-August-29-2023"]
[Site "Chess.com"]
[Date "2023.08.29"]
[Round "8"]
[White "Good_Knight_Kiss"]
[Black "ZuraTqebuchava"]
[Result "0-1"]
[WhiteElo "2329"]
[BlackElo "2174"]
[TimeControl "180+1"]
[EndTime "15:27:41 PDT"]
[Termination "ZuraTqebuchava won on time"]

1. e4 {[%clk 0:03:00.9]} 1... e5 {[%clk 0:03:00]} 2. Nf3 {[%clk 0:02:51.4]} 2...
Nc6 {[%clk 0:03:00.2]} 3. Bb5 {[%clk 0:02:47.7]} 3... d6 {[%clk 0:02:57.6]} 4.
d4 {[%clk 0:02:40.1]} 4... exd4 {[%clk 0:02:56.8]} 5. Nxd4 {[%clk 0:02:40.1]}
5... Bd7 {[%clk 0:02:57.3]} 6. O-O {[%clk 0:02:39.4]} 6... Be7 {[%clk
0:02:47.9]} 7. c4 {[%clk 0:02:37.3]} 7... Nf6 {[%clk 0:02:46.5]} 8. Nc3 {[%clk
0:02:37.2]} 8... O-O {[%clk 0:02:36.9]} 9. Re1 {[%clk 0:02:37.2]} 9... Nxd4
{[%clk 0:02:36.2]} 10. Qxd4 {[%clk 0:02:35.6]} 10... a6 {[%clk 0:02:30.7]} 11.
Bxd7 {[%clk 0:02:34.2]} 11... Nxd7 {[%clk 0:02:31.2]} 12. Nd5 {[%clk 0:02:33.5]}
12... Bf6 {[%clk 0:02:23.3]} 13. Nxf6+ {[%clk 0:02:32.5]} 13... Qxf6 {[%clk
0:02:23.5]} 14. Qxf6 {[%clk 0:02:22.3]} 14... Nxf6 {[%clk 0:02:24.4]} 15. Bg5
{[%clk 0:02:21.3]} 15... Nd7 {[%clk 0:02:20.2]} 16. f3 {[%clk 0:01:46.1]} 16...
h6 {[%clk 0:02:16.2]} 17. Be3 {[%clk 0:01:44.5]} 17... Rfe8 {[%clk 0:02:14.3]}
18. Rac1 {[%clk 0:01:41.4]} 18... Ne5 {[%clk 0:02:10.3]} 19. Red1 {[%clk
0:01:37.7]} 19... b6 {[%clk 0:02:06]} 20. Kf2 {[%clk 0:01:26.2]} 20... a5 {[%clk
0:02:02.4]} 21. b3 {[%clk 0:01:21.8]} 21... Kh7 {[%clk 0:01:52.6]} 22. h3 {[%clk
0:01:21.6]} 22... g5 {[%clk 0:01:46.9]} 23. Rd5 {[%clk 0:01:14.8]} 23... Kg6
{[%clk 0:01:43.1]} 24. Rh1 {[%clk 0:01:07.4]} 24... h5 {[%clk 0:01:38.7]} 25. h4
{[%clk 0:01:03.7]} 25... g4 {[%clk 0:01:37.9]} 26. f4 {[%clk 0:00:54.5]} 26...
Nd7 {[%clk 0:01:10.6]} 27. Rg5+ {[%clk 0:00:54.3]} 27... Kh6 {[%clk 0:01:09.6]}
28. e5 {[%clk 0:00:27.8]} 28... Nc5 {[%clk 0:00:48.6]} 29. Bxc5 {[%clk
0:00:13.6]} 29... dxc5 {[%clk 0:00:43.5]} 30. Rf5 {[%clk 0:00:10.9]} 30... Kg6
{[%clk 0:00:37.5]} 31. Rf6+ {[%clk 0:00:07.4]} 31... Kg7 {[%clk 0:00:35.9]} 32.
Rc6 {[%clk 0:00:06]} 32... Re7 {[%clk 0:00:30.4]} 33. Rd1 {[%clk 0:00:05.9]}
33... a4 {[%clk 0:00:27.1]} 34. Rd2 {[%clk 0:00:02.3]} 34... axb3 {[%clk
0:00:26.8]} 35. axb3 {[%clk 0:00:03.2]} 35... Ra3 {[%clk 0:00:26.8]} 36. Rb2
{[%clk 0:00:03.2]} 36... Ra1 {[%clk 0:00:25.5]} 37. Ke3 {[%clk 0:00:02.9]} 37...
Rg1 {[%clk 0:00:22.5]} 38. Ke4 {[%clk 0:00:02.6]} 38... Rh1 {[%clk 0:00:19.1]}
39. g3 {[%clk 0:00:01.1]} 39... Rg1 {[%clk 0:00:17]} 40. Kf5 {[%clk 0:00:01.5]}
40... Rxg3 {[%clk 0:00:14.2]} 41. Kg5 {[%clk 0:00:02]} 41... Rf3 {[%clk
0:00:10.8]} 0-1

[Event "Late-Titled-Tuesday-Blitz-August-29-2023"]
[Site "Chess.com"]
[Date "2023.08.29"]
[Round "8"]
[White "CraiggoryC"]
[Black "SergioMoralesG"]
[Result "1-0"]
[WhiteElo "2234"]
[BlackElo "2400"]
[TimeControl "180+1"]
[EndTime "15:27:41 PDT"]
[Termination "CraiggoryC won on time"]

1. e4 {[%clk 0:03:00.9]} 1... c5 {[%clk 0:02:58.7]} 2. Nf3 {[%clk 0:03:01.1]}
2... e6 {[%clk 0:02:59.1]} 3. d4 {[%clk 0:03:01.2]} 3... cxd4 {[%clk 0:03:00]}
4. Nxd4 {[%clk 0:03:01.9]} 4... Nc6 {[%clk 0:03:00.5]} 5. Nc3 {[%clk 0:03:02]}
5... Qc7 {[%clk 0:03:00.9]} 6. Be3 {[%clk 0:03:00.7]} 6... a6 {[%clk 0:03:01.1]}
7. Qd2 {[%clk 0:03:01.2]} 7... Nf6 {[%clk 0:03:01.6]} 8. O-O-O {[%clk
0:02:59.6]} 8... Bb4 {[%clk 0:03:01.4]} 9. f3 {[%clk 0:02:57.3]} 9... Ne5 {[%clk
0:03:01.7]} 10. Nb3 {[%clk 0:02:47.5]} 10... b5 {[%clk 0:03:01]} 11. a3 {[%clk
0:02:22.5]} 11... Be7 {[%clk 0:02:57.7]} 12. f4 {[%clk 0:02:11.9]} 12... Nc4
{[%clk 0:02:46.9]} 13. Bxc4 {[%clk 0:02:11.8]} 13... Qxc4 {[%clk 0:02:46.6]} 14.
e5 {[%clk 0:02:00.5]} 14... Ng4 {[%clk 0:02:46.2]} 15. Bg1 {[%clk 0:01:21.9]}
15... O-O {[%clk 0:02:45.4]} 16. h3 {[%clk 0:01:16.9]} 16... Nh6 {[%clk
0:02:45.3]} 17. g4 {[%clk 0:01:07.1]} 17... b4 {[%clk 0:02:43.1]} 18. axb4
{[%clk 0:01:03.6]} 18... Bxb4 {[%clk 0:02:42.7]} 19. Qd4 {[%clk 0:00:53.4]}
19... Qxd4 {[%clk 0:02:21.1]} 20. Bxd4 {[%clk 0:00:54.3]} 20... Bb7 {[%clk
0:02:06.5]} 21. Rhg1 {[%clk 0:00:32.1]} 21... f5 {[%clk 0:01:59.3]} 22. exf6
{[%clk 0:00:25.2]} 22... gxf6 {[%clk 0:01:57.8]} 23. g5 {[%clk 0:00:18.6]} 23...
Nf5 {[%clk 0:01:49.8]} 24. gxf6+ {[%clk 0:00:18.4]} 24... Kf7 {[%clk 0:01:47]}
25. Be5 {[%clk 0:00:16.7]} 25... d6 {[%clk 0:01:45.8]} 26. Na2 {[%clk
0:00:09.5]} 26... dxe5 {[%clk 0:00:13.2]} 27. fxe5 {[%clk 0:00:10.4]} 27... Bd5
{[%clk 0:00:10]} 28. Nxb4 {[%clk 0:00:09.3]} 28... Ne3 {[%clk 0:00:06.3]} 29.
Nxd5 {[%clk 0:00:08.7]} 29... exd5 {[%clk 0:00:05.2]} 30. Rg7+ {[%clk
0:00:07.1]} 30... Ke6 {[%clk 0:00:05.2]} 31. Re7+ {[%clk 0:00:07.5]} 31... Kf5
{[%clk 0:00:05.3]} 32. Rd4 {[%clk 0:00:06.8]} 32... Rg8 {[%clk 0:00:04.1]} 33.
Kd2 {[%clk 0:00:05.2]} 33... Nc4+ {[%clk 0:00:04.1]} 34. Rxc4 {[%clk 0:00:04.6]}
34... dxc4 {[%clk 0:00:03.6]} 35. Nd4+ {[%clk 0:00:05.5]} 35... Ke4 {[%clk
0:00:03.3]} 36. f7 {[%clk 0:00:05.7]} 36... Rg2+ {[%clk 0:00:03.8]} 37. Kc3
{[%clk 0:00:05.7]} 37... Rg3+ {[%clk 0:00:03.6]} 38. Kxc4 {[%clk 0:00:06.1]}
38... Rc8+ {[%clk 0:00:03.9]} 39. Kb4 {[%clk 0:00:05.5]} 39... Kxd4 {[%clk
0:00:04.3]} 40. Re8 {[%clk 0:00:05.3]} 40... Rg8 {[%clk 0:00:04.8]} 41. fxg8=Q
{[%clk 0:00:04.7]} 1-0

[Event "Late-Titled-Tuesday-Blitz-August-29-2023"]
[Site "Chess.com"]
[Date "2023.08.29"]
[Round "8"]
[White "Arystanner"]
[Black "Beca95"]
[Result "0-1"]
[WhiteElo "2871"]
[BlackElo "2958"]
[TimeControl "180+1"]
[EndTime "15:27:42 PDT"]
[Termination "Beca95 won by resignation"]

1. d4 {[%clk 0:03:00.9]} 1... Nf6 {[%clk 0:02:58.4]} 2. Nf3 {[%clk 0:03:01.4]}
2... e6 {[%clk 0:02:58]} 3. c4 {[%clk 0:02:58.9]} 3... c5 {[%clk 0:02:57.3]} 4.
e3 {[%clk 0:02:59.5]} 4... a6 {[%clk 0:02:54.8]} 5. Nc3 {[%clk 0:02:58.6]} 5...
d5 {[%clk 0:02:53]} 6. a3 {[%clk 0:02:59.1]} 6... dxc4 {[%clk 0:02:51.1]} 7.
Bxc4 {[%clk 0:03:00]} 7... b5 {[%clk 0:02:50.5]} 8. Ba2 {[%clk 0:03:00.7]} 8...
Bb7 {[%clk 0:02:48.6]} 9. O-O {[%clk 0:03:00.8]} 9... Nbd7 {[%clk 0:02:49.1]}
10. Qe2 {[%clk 0:03:00.8]} 10... Bd6 {[%clk 0:02:39.4]} 11. Rd1 {[%clk
0:03:00.2]} 11... Qb8 {[%clk 0:02:38.8]} 12. h3 {[%clk 0:02:50.5]} 12... O-O
{[%clk 0:02:37.5]} 13. d5 {[%clk 0:02:50.1]} 13... exd5 {[%clk 0:02:32.4]} 14.
Nxd5 {[%clk 0:02:50.6]} 14... Nxd5 {[%clk 0:02:31.9]} 15. Bxd5 {[%clk
0:02:51.5]} 15... Bxd5 {[%clk 0:02:31.2]} 16. Rxd5 {[%clk 0:02:52.4]} 16... Nf6
{[%clk 0:02:30.4]} 17. Rf5 {[%clk 0:02:52.5]} 17... Re8 {[%clk 0:02:20]} 18. Bd2
{[%clk 0:02:33.2]} 18... Qc8 {[%clk 0:02:18]} 19. Qd3 {[%clk 0:02:24.8]} 19...
c4 {[%clk 0:02:07.7]} 20. Qc2 {[%clk 0:02:23.1]} 20... Ne4 {[%clk 0:02:07.4]}
21. Rd5 {[%clk 0:02:22.9]} 21... Qe6 {[%clk 0:02:05.8]} 22. Rh5 {[%clk 0:02:07]}
22... g6 {[%clk 0:01:52.3]} 23. Rh4 {[%clk 0:02:02]} 23... f5 {[%clk 0:01:47]}
24. Bb4 {[%clk 0:01:53.3]} 24... Bc7 {[%clk 0:01:38.9]} 25. Rd1 {[%clk
0:01:14.9]} 25... Rad8 {[%clk 0:01:36.5]} 26. Rd4 {[%clk 0:01:12.2]} 26... Rxd4
{[%clk 0:01:34.6]} 27. Nxd4 {[%clk 0:01:07.4]} 27... Qf6 {[%clk 0:01:32.7]} 28.
Nf3 {[%clk 0:01:07.7]} 28... Qd8 {[%clk 0:01:07.2]} 29. Bc3 {[%clk 0:00:47.6]}
29... Qd3 {[%clk 0:00:53.8]} 30. Qxd3 {[%clk 0:00:47.7]} 30... cxd3 {[%clk
0:00:52.4]} 31. Nd2 {[%clk 0:00:48.4]} 31... Nxc3 {[%clk 0:00:34.9]} 32. bxc3
{[%clk 0:00:48.6]} 32... Be5 {[%clk 0:00:34.9]} 33. c4 {[%clk 0:00:42.9]} 33...
Bc3 {[%clk 0:00:33.5]} 34. Nb1 {[%clk 0:00:42.8]} 34... Bf6 {[%clk 0:00:20.6]}
35. Rf4 {[%clk 0:00:42.7]} 35... Rc8 {[%clk 0:00:21]} 36. Nd2 {[%clk 0:00:39]}
36... Be5 {[%clk 0:00:13.7]} 37. Rh4 {[%clk 0:00:37.3]} 37... g5 {[%clk
0:00:13.5]} 38. Rh5 {[%clk 0:00:37.9]} 38... bxc4 {[%clk 0:00:13.4]} 39. Rxg5+
{[%clk 0:00:38.6]} 39... Bg7 {[%clk 0:00:13.3]} 40. Rxf5 {[%clk 0:00:23.4]}
40... c3 {[%clk 0:00:12.3]} 41. Nb3 {[%clk 0:00:23.9]} 41... Rd8 {[%clk
0:00:11.6]} 0-1

[Event "Late-Titled-Tuesday-Blitz-August-29-2023"]
[Site "Chess.com"]
[Date "2023.08.29"]
[Round "8"]
[White "Schwindle"]
[Black "vladgoncharov"]
[Result "0-1"]
[WhiteElo "2402"]
[BlackElo "2507"]
[TimeControl "180+1"]
[EndTime "15:27:42 PDT"]
[Termination "vladgoncharov won by resignation"]

1. Nf3 {[%clk 0:03:00.9]} 1... Nf6 {[%clk 0:02:56.9]} 2. d4 {[%clk 0:03:00]}
2... e6 {[%clk 0:02:56.1]} 3. c4 {[%clk 0:02:58.9]} 3... c5 {[%clk 0:02:56.3]}
4. Nc3 {[%clk 0:02:55.9]} 4... cxd4 {[%clk 0:02:49.7]} 5. Nxd4 {[%clk
0:02:54.7]} 5... Bb4 {[%clk 0:02:50]} 6. Qc2 {[%clk 0:02:52.8]} 6... Nc6 {[%clk
0:02:46.8]} 7. Nf3 {[%clk 0:02:43.9]} 7... d5 {[%clk 0:02:40.2]} 8. a3 {[%clk
0:02:37.8]} 8... Qa5 {[%clk 0:02:35.8]} 9. e3 {[%clk 0:02:26.3]} 9... Ne4 {[%clk
0:02:24.4]} 10. Bd2 {[%clk 0:02:11.4]} 10... Nxd2 {[%clk 0:02:08.2]} 11. Qxd2
{[%clk 0:02:10.7]} 11... Bxc3 {[%clk 0:02:03.1]} 12. Qxc3 {[%clk 0:02:07.1]}
12... Qxc3+ {[%clk 0:02:02.4]} 13. bxc3 {[%clk 0:02:08]} 13... dxc4 {[%clk
0:02:02.7]} 14. Bxc4 {[%clk 0:02:07.3]} 14... Ke7 {[%clk 0:02:02.5]} 15. Ke2
{[%clk 0:02:03.4]} 15... Na5 {[%clk 0:02:02.3]} 16. Bd3 {[%clk 0:01:57]} 16...
Bd7 {[%clk 0:02:02.4]} 17. Rab1 {[%clk 0:01:55]} 17... Rac8 {[%clk 0:01:59.4]}
18. Kd2 {[%clk 0:01:48]} 18... Rhd8 {[%clk 0:01:57.6]} 19. Rhc1 {[%clk 0:01:25]}
19... Ba4 {[%clk 0:01:53.2]} 20. Ke2 {[%clk 0:01:18.2]} 20... b6 {[%clk
0:01:48.6]} 21. Rb4 {[%clk 0:01:11.1]} 21... Bc6 {[%clk 0:01:39.9]} 22. Nd4
{[%clk 0:01:02]} 22... g6 {[%clk 0:01:36.3]} 23. f3 {[%clk 0:00:58.8]} 23... Be8
{[%clk 0:01:34.3]} 24. Ba6 {[%clk 0:00:56.8]} 24... Rc5 {[%clk 0:01:32.1]} 25.
c4 {[%clk 0:00:46]} 25... e5 {[%clk 0:01:32.9]} 26. Nb3 {[%clk 0:00:39.6]} 26...
Nxb3 {[%clk 0:01:28.9]} 27. Rxb3 {[%clk 0:00:40.1]} 27... Bd7 {[%clk 0:01:20.9]}
28. Rd3 {[%clk 0:00:26.3]} 28... Be6 {[%clk 0:01:14.8]} 29. Rxd8 {[%clk
0:00:25]} 29... Kxd8 {[%clk 0:01:15.7]} 30. Rc3 {[%clk 0:00:15.3]} 30... Ke7
{[%clk 0:01:07.6]} 31. e4 {[%clk 0:00:14.3]} 31... Bd7 {[%clk 0:00:58.2]} 32.
Bb7 {[%clk 0:00:12.9]} 32... f6 {[%clk 0:00:46.1]} 33. Bd5 {[%clk 0:00:12.8]}
33... Ra5 {[%clk 0:00:44.6]} 34. Kd3 {[%clk 0:00:12.7]} 34... Kd6 {[%clk
0:00:44.8]} 35. g3 {[%clk 0:00:11.1]} 35... Kc5 {[%clk 0:00:44.7]} 36. Ke3
{[%clk 0:00:10.4]} 36... a6 {[%clk 0:00:38.4]} 37. f4 {[%clk 0:00:10.6]} 37...
Kd6 {[%clk 0:00:38.3]} 38. Rb3 {[%clk 0:00:09.6]} 38... b5 {[%clk 0:00:36.2]}
39. Rd3 {[%clk 0:00:07.2]} 39... Kc7 {[%clk 0:00:30.8]} 40. c5 {[%clk
0:00:06.7]} 40... Bc6 {[%clk 0:00:24]} 41. h4 {[%clk 0:00:05.2]} 41... Ra4
{[%clk 0:00:19.5]} 42. Bg8 {[%clk 0:00:01.2]} 42... Rxe4+ {[%clk 0:00:18.5]} 43.
Kd2 {[%clk 0:00:01.8]} 43... exf4 {[%clk 0:00:18.2]} 44. gxf4 {[%clk 0:00:01.5]}
44... Rxf4 {[%clk 0:00:18.4]} 45. Bxh7 {[%clk 0:00:02.2]} 45... Rg4 {[%clk
0:00:18.1]} 46. Bxg6 {[%clk 0:00:03.1]} 46... Rxg6 {[%clk 0:00:17.7]} 0-1

[Event "Late-Titled-Tuesday-Blitz-August-29-2023"]
[Site "Chess.com"]
[Date "2023.08.29"]
[Round "8"]
[White "cthulhuuu"]
[Black "Dr_crypt"]
[Result "0-1"]
[WhiteElo "2467"]
[BlackElo "2346"]
[TimeControl "180+1"]
[EndTime "15:27:45 PDT"]
[Termination "Dr_crypt won on time"]

1. e4 {[%clk 0:03:00]} 1... d5 {[%clk 0:02:59.4]} 2. exd5 {[%clk 0:03:00.4]}
2... Qxd5 {[%clk 0:03:00.3]} 3. d3 {[%clk 0:03:00.5]} 3... Nf6 {[%clk 0:03:00]}
4. Nc3 {[%clk 0:03:00.5]} 4... Qd8 {[%clk 0:02:59]} 5. g3 {[%clk 0:03:00.4]}
5... c6 {[%clk 0:02:58]} 6. Bg2 {[%clk 0:03:00]} 6... Bg4 {[%clk 0:02:57.8]} 7.
Nf3 {[%clk 0:02:59.1]} 7... e6 {[%clk 0:02:58.4]} 8. h3 {[%clk 0:02:59.4]} 8...
Bh5 {[%clk 0:02:58.5]} 9. O-O {[%clk 0:02:59.5]} 9... Be7 {[%clk 0:02:57.6]} 10.
Re1 {[%clk 0:02:57.9]} 10... O-O {[%clk 0:02:57.5]} 11. g4 {[%clk 0:02:58.2]}
11... Bg6 {[%clk 0:02:57.7]} 12. Ne5 {[%clk 0:02:58.7]} 12... Nbd7 {[%clk
0:02:57.6]} 13. Nxg6 {[%clk 0:02:58.7]} 13... hxg6 {[%clk 0:02:58]} 14. Bf4
{[%clk 0:02:41.5]} 14... Nd5 {[%clk 0:02:56]} 15. Bd2 {[%clk 0:02:39.1]} 15...
Bf6 {[%clk 0:02:48.5]} 16. Ne4 {[%clk 0:02:36.7]} 16... Bxb2 {[%clk 0:02:41.4]}
17. Rb1 {[%clk 0:02:36.5]} 17... Bd4 {[%clk 0:02:41.1]} 18. Rxb7 {[%clk
0:02:33.2]} 18... Bb6 {[%clk 0:02:36.2]} 19. c4 {[%clk 0:02:26.1]} 19... N5f6
{[%clk 0:02:30.2]} 20. Nxf6+ {[%clk 0:02:03.5]} 20... Nxf6 {[%clk 0:02:27.3]}
21. Bxc6 {[%clk 0:01:54.3]} 21... Rc8 {[%clk 0:02:26.2]} 22. Bg2 {[%clk
0:01:33]} 22... Qxd3 {[%clk 0:02:24.8]} 23. Bb4 {[%clk 0:01:09.3]} 23... Rfd8
{[%clk 0:02:23.1]} 24. Qxd3 {[%clk 0:01:04.6]} 24... Rxd3 {[%clk 0:02:23.5]} 25.
Bf1 {[%clk 0:00:57.3]} 25... Rf3 {[%clk 0:02:07.2]} 26. c5 {[%clk 0:00:47.8]}
26... Bxc5 {[%clk 0:02:02.2]} 27. Bxc5 {[%clk 0:00:48.1]} 27... Rxc5 {[%clk
0:02:02.1]} 28. Rxa7 {[%clk 0:00:49]} 28... Rc2 {[%clk 0:01:59.7]} 29. Re2
{[%clk 0:00:29]} 29... Rxe2 {[%clk 0:01:48.1]} 30. Bxe2 {[%clk 0:00:29.9]} 30...
Rxh3 {[%clk 0:01:47.6]} 31. a4 {[%clk 0:00:30.8]} 31... Ra3 {[%clk 0:01:45.3]}
32. a5 {[%clk 0:00:31.5]} 32... Ra2 {[%clk 0:01:35.3]} 33. Bf1 {[%clk
0:00:31.3]} 33... Nxg4 {[%clk 0:01:34.3]} 34. a6 {[%clk 0:00:31.7]} 34... Nxf2
{[%clk 0:01:27]} 35. Rd7 {[%clk 0:00:22.3]} 35... Nh3+ {[%clk 0:01:15.7]} 36.
Kh1 {[%clk 0:00:14.3]} 36... Nf2+ {[%clk 0:00:58]} 37. Kg2 {[%clk 0:00:14.8]}
37... Nd3+ {[%clk 0:00:56]} 38. Kg3 {[%clk 0:00:13.1]} 38... Nc5 {[%clk
0:00:55.7]} 39. Rd8+ {[%clk 0:00:05.7]} 39... Kh7 {[%clk 0:00:55.4]} 40. Ra8
{[%clk 0:00:05.2]} 40... Nxa6 {[%clk 0:00:54.3]} 41. Rxa6 {[%clk 0:00:05.1]}
41... Rxa6 {[%clk 0:00:53.1]} 42. Bxa6 {[%clk 0:00:06]} 42... Kh6 {[%clk
0:00:48.8]} 43. Kf4 {[%clk 0:00:05.2]} 43... f6 {[%clk 0:00:47.9]} 44. Bc8
{[%clk 0:00:03.7]} 44... e5+ {[%clk 0:00:47]} 45. Ke4 {[%clk 0:00:03.8]} 45...
Kg5 {[%clk 0:00:45.7]} 46. Bd7 {[%clk 0:00:03.3]} 46... Kh4 {[%clk 0:00:44.8]}
47. Be8 {[%clk 0:00:02.7]} 47... g5 {[%clk 0:00:44.3]} 48. Kf5 {[%clk
0:00:01.6]} 48... g4 {[%clk 0:00:43.7]} 49. Bc6 {[%clk 0:00:02.5]} 49... Kh3
{[%clk 0:00:41.2]} 0-1

[Event "Late-Titled-Tuesday-Blitz-August-29-2023"]
[Site "Chess.com"]
[Date "2023.08.29"]
[Round "8"]
[White "RCone"]
[Black "Djager97"]
[Result "1-0"]
[WhiteElo "2452"]
[BlackElo "2565"]
[TimeControl "180+1"]
[EndTime "15:27:47 PDT"]
[Termination "RCone won on time"]

1. e4 {[%clk 0:03:00.9]} 1... e5 {[%clk 0:02:59.8]} 2. Bc4 {[%clk 0:02:57.6]}
2... Nf6 {[%clk 0:02:59.3]} 3. Nc3 {[%clk 0:02:57.1]} 3... Nc6 {[%clk
0:02:58.9]} 4. d3 {[%clk 0:02:56.3]} 4... Bc5 {[%clk 0:02:58.8]} 5. f4 {[%clk
0:02:56.2]} 5... exf4 {[%clk 0:02:58.5]} 6. Bxf4 {[%clk 0:02:55.4]} 6... d6
{[%clk 0:02:58.6]} 7. Nf3 {[%clk 0:02:41]} 7... O-O {[%clk 0:02:56.6]} 8. d4
{[%clk 0:02:40]} 8... Bb6 {[%clk 0:02:42.6]} 9. Bg5 {[%clk 0:02:21]} 9... h6
{[%clk 0:02:42.2]} 10. Bxf6 {[%clk 0:02:10.2]} 10... Qxf6 {[%clk 0:02:43.1]} 11.
Nd5 {[%clk 0:02:05.4]} 11... Qg6 {[%clk 0:02:34.1]} 12. O-O {[%clk 0:01:49]}
12... Qxe4 {[%clk 0:02:33.5]} 13. Nxb6 {[%clk 0:01:19.6]} 13... axb6 {[%clk
0:02:34.4]} 14. Qd2 {[%clk 0:01:13.4]} 14... Bd7 {[%clk 0:02:13]} 15. Rae1
{[%clk 0:01:12.5]} 15... Qg6 {[%clk 0:02:10.3]} 16. Bd3 {[%clk 0:01:11.5]} 16...
Qh5 {[%clk 0:02:08.2]} 17. a3 {[%clk 0:00:59.3]} 17... Rae8 {[%clk 0:02:05.4]}
18. c3 {[%clk 0:00:59]} 18... Rxe1 {[%clk 0:02:03.4]} 19. Rxe1 {[%clk
0:00:59.7]} 19... Re8 {[%clk 0:02:00.5]} 20. Rf1 {[%clk 0:00:59.2]} 20... Bf5
{[%clk 0:01:18.3]} 21. Bxf5 {[%clk 0:00:55.1]} 21... Qxf5 {[%clk 0:01:19.2]} 22.
Ne5 {[%clk 0:00:53.1]} 22... Qh5 {[%clk 0:00:55.1]} 23. Nf3 {[%clk 0:00:19.8]}
23... f6 {[%clk 0:00:51.1]} 24. h3 {[%clk 0:00:20.4]} 24... Ne7 {[%clk 0:00:49]}
25. Nh2 {[%clk 0:00:19.7]} 25... Nd5 {[%clk 0:00:45.1]} 26. Ng4 {[%clk
0:00:19.2]} 26... Qg5 {[%clk 0:00:41.3]} 27. Qf2 {[%clk 0:00:18.7]} 27... h5
{[%clk 0:00:29.7]} 28. Nh2 {[%clk 0:00:17.4]} 28... Qe3 {[%clk 0:00:23.1]} 29.
Nf3 {[%clk 0:00:16.7]} 29... b5 {[%clk 0:00:21]} 30. Qxe3 {[%clk 0:00:13]} 30...
Rxe3 {[%clk 0:00:20.5]} 31. Kf2 {[%clk 0:00:12.8]} 31... Re8 {[%clk 0:00:15.3]}
32. h4 {[%clk 0:00:12.9]} 32... Kf7 {[%clk 0:00:14.9]} 33. Rc1 {[%clk
0:00:12.7]} 33... Nf4 {[%clk 0:00:14.3]} 34. Rc2 {[%clk 0:00:12.4]} 34... d5
{[%clk 0:00:09.4]} 35. g3 {[%clk 0:00:12.5]} 35... Ne6 {[%clk 0:00:08.4]} 36.
Ne1 {[%clk 0:00:09.5]} 36... c6 {[%clk 0:00:07.2]} 37. Nd3 {[%clk 0:00:09.9]}
37... g6 {[%clk 0:00:05.3]} 38. Rc1 {[%clk 0:00:09.7]} 38... Nf8 {[%clk
0:00:05.4]} 39. Ra1 {[%clk 0:00:10]} 39... Ra8 {[%clk 0:00:04.4]} 40. Nc5 {[%clk
0:00:09.7]} 40... b6 {[%clk 0:00:03.8]} 41. Nd3 {[%clk 0:00:09]} 41... Nd7
{[%clk 0:00:04.5]} 42. Nf4 {[%clk 0:00:09.3]} 42... Re8 {[%clk 0:00:01.7]} 43.
Kf3 {[%clk 0:00:08.4]} 43... Kg7 {[%clk 0:00:01.2]} 44. b3 {[%clk 0:00:08]} 1-0